bitfinex-derivatives/quotes_SOLF0:USTF0_20260123
["timestamp","ask_amount","ask_price","bid_price","bid_amount"]
[1769195834296,109.1959,128.36,128.26,70.05631405]
[1769195834501,109.2048,128.35,128.26,70.05631405]
[1769195834699,109.2115,128.34,128.23,70.05631405]
[1769195835202,7.0225,128.31,128.23,70.05631405]
[1769195835598,0.05577328,128.3,128.23,70.05631405]
[1769195835803,7.07877328,128.3,128.23,70.05631405]
[1769195837106,109.30307328,128.3,128.2,70.05631405]
[1769195837500,109.2551,128.29,128.2,70.05631405]
[1769195837698,109.2885,128.25,128.17,70.05631405]
[1769195838101,109.2962,128.24,128.17,70.05631405]
[1769195838502,109.3063,128.23,128.14,70.05631405]
[1769195838801,109.3302,128.2,128.1,70.05631405]
[1769195839001,7.0291,128.19,128.1,70.05631405]
[1769195839200,109.358,128.17,128.07,70.05631405]
[1769195839398,109.3475,128.18,128.07,70.05631405]
[1769195839602,109.3485,128.18,128.07,70.05631405]
[1769195839907,109.3485,128.18,128.07,77.09141405]
[1769195839908,0.05845651,128.14,128.07,77.09141405]
[1769195840119,0.05845651,128.14,128.07,70.05631405]
[1769195840408,7.0296,128.18,128.08,70.05631405]
[1769195840609,7.0296,128.18,128.09,70.10843723]
[1769195840804,7.0284,128.2,128.1,77.08981405]
[1769195841003,114.35184802,128.23,128.11,70.05631405]
[1769195841204,109.3004,128.24,128.12,70.05631405]
[1769195841507,109.2922,128.25,128.14,70.05631405]
[1769195841714,7.0263,128.24,128.14,77.08741405]
[1769195841910,109.2797,128.26,128.17,0.0580921]
[1769195842112,109.2979,128.24,128.17,0.0580921]
[1769195842306,109.38542254,128.2,128.11,70.05631405]
[1769195842606,109.3476,128.18,128.08,70.0853601]
[1769195843013,109.3728,128.15,128.05,70.0853601]
[1769195843402,109.3812,128.14,128.05,70.0853601]
[1769195843601,109.3659,128.16,128.05,70.0853601]
[1769195843807,109.3644,128.16,128.05,70.0853601]
[1769195844519,109.3476,128.18,128.06,77.1209601]
[1769195844811,109.382,128.14,128.03,70.0853601]
[1769195845218,109.4016,128.12,128.03,70.0853601]
[1769195846011,5.04554802,128.13,128.03,70.0853601]
[1769195846217,5.04554802,128.11,128.0,70.0853601]
[1769195846420,0.05371413,128.09,128.01,70.0853601]
[1769195846612,109.3733,128.15,128.03,70.0853601]
[1769195846912,109.3733,128.15,128.04,70.05850303]
[1769195846913,109.3828,128.14,128.04,70.05850303]
[1769195847305,116.4239,128.13,128.04,70.05850303]
[1769195848131,116.4335,128.12,128.01,70.05850303]
[1769195848612,109.4138,128.11,128.01,70.05850303]
[1769195848809,109.3913,128.13,127.98,15.91725696]
[1769195848810,149.30492455,128.05,127.98,15.91725696]
[1769195849003,39.84402455,128.05,127.98,15.91725696]
[1769195849616,39.84402455,128.08,127.98,15.91725696]
[1769195850305,40.13783818,128.04,127.98,15.91725696]
[1769195850611,40.27472305,128.0,127.89,0.23457658]
[1769195850811,40.27472305,128.0,127.91,52.05493255]
[1769195851316,149.74312305,128.04,127.93,52.05493255]
[1769195851507,40.27472305,128.04,127.93,52.05493255]
[1769195851707,47.31192305,128.04,127.93,57.10048057]
[1769195852114,40.27472305,128.04,127.95,60.51663452]
[1769195852403,40.27472305,128.04,127.96,55.4710865]
[1769195852811,150.51689213,128.03,127.93,55.4710865]
[1769195853015,150.53369213,128.01,127.9,67.59633773]
[1769195853412,41.03939213,128.01,127.9,67.59633773]
[1769195853711,109.4858,128.02,127.9,67.59633773]
[1769195853712,41.26944328,128.04,127.92,55.4710865]
[1769195853924,41.26944328,128.04,127.92,60.55203773]
[1769195854113,41.26944328,128.04,127.95,55.4710865]
[1769195854316,0.05310832,127.99,127.95,55.4710865]
[1769195854520,41.26944328,128.04,127.95,55.4710865]
[1769195854719,41.26944328,128.04,127.98,0.05634528]
[1769195854908,150.73624328,128.04,127.98,0.05634528]
[1769195855115,150.99787275,128.07,127.98,0.05634528]
[1769195855310,7.0363,128.06,127.98,0.05634528]
[1769195855622,151.02307275,128.04,127.93,60.55203773]
[1769195856222,7.0377,128.03,127.93,55.4710865]
[1769195856418,7.0377,128.03,127.93,60.55203773]
[1769195856821,7.0367,128.05,127.95,55.4710865]
[1769195857418,7.0367,128.05,127.95,62.5127865]
[1769195857922,7.0367,128.05,127.95,67.59373773]
[1769195858420,7.0367,128.05,127.96,62.5123865]
[1769195858614,49.03395423,128.07,127.96,62.5123865]
[1769195858818,42.43520624,128.05,127.96,55.4710865]
[1769195859516,42.43520624,128.11,128.0,55.4710865]
[1769195859720,152.03570579,128.14,128.02,60.55203773]
[1769195859930,152.07480579,128.09,127.98,55.4710865]
[1769195860123,42.64960579,128.08,127.98,55.4710865]
[1769195861025,152.27230982,128.11,128.0,55.4710865]
[1769195861213,42.86170982,128.11,128.0,55.4710865]
[1769195861417,152.24870982,128.14,128.03,62.5084865]
[1769195862022,152.24870982,128.14,128.05,55.4710865]
[1769195862023,7.0319,128.14,128.05,55.4710865]
[1769195862228,109.3368,128.2,128.09,55.4710865]
[1769195862423,152.40761805,128.2,128.09,55.4710865]
[1769195862912,43.07081805,128.2,128.1,60.55203773]
[1769195863113,43.27828688,128.18,128.13,0.05161478]
[1769195863324,43.27828688,128.18,128.07,55.4710865]
[1769195863918,43.48301338,128.21,128.1,55.4710865]
[1769195864119,43.48301338,128.21,128.1,60.55203773]
[1769195864519,109.3318,128.2,128.1,60.55203773]
[1769195864722,109.3385,128.19,128.1,55.4710865]
[1769195864926,109.32,128.22,128.1,55.4710865]
[1769195865128,109.3228,128.21,128.12,55.4710865]
[1769195865427,109.3312,128.2,128.12,55.4710865]
[1769195865828,109.3228,128.21,128.12,55.4710865]
[1769195866727,7.029,128.19,128.12,55.4710865]
[1769195867324,7.0286,128.2,128.12,55.4710865]
[1769195868029,50.91248256,128.22,128.12,62.5035865]
[1769195868221,43.88498256,128.22,128.12,62.5035865]
[1769195868615,109.3254,128.21,128.12,55.4710865]
[1769195869020,153.20098256,128.22,128.12,55.4710865]
[1769195869418,7.0281,128.21,128.12,62.5035865]
[1769195870437,44.66167548,128.27,128.16,55.4710865]
[1769195870729,109.2975,128.24,128.16,55.4710865]
[1769195871434,109.3073,128.23,128.13,55.4710865]
[1769195871831,5.08095123,128.26,128.15,55.4710865]
[1769195872023,45.03587843,128.24,128.15,55.4710865]
[1769195872227,154.33437843,128.24,128.15,55.4710865]
[1769195872529,45.03587843,128.19,128.08,55.4710865]
[1769195873116,0.05592482,128.15,128.12,0.05557829]
[1769195873524,0.05592482,128.15,128.08,55.4710865]
[1769195873720,0.05592482,128.15,128.05,55.4710865]
[1769195874127,159.66067094,128.17,128.06,62.5068865]
[1769195874719,7.0308,128.16,128.07,62.5063865]
[1769195875134,0.05463095,128.13,128.07,62.5063865]
[1769195877339,0.05463095,128.13,128.08,62.5057865]
[1769195877645,7.0298,128.18,128.08,62.5057865]
[1769195877825,109.3412,128.19,128.08,55.4710865]
[1769195877826,109.3386,128.19,128.08,55.4710865]
[1769195878031,155.44659702,128.19,128.08,55.4710865]
[1769195878239,7.0307,128.16,128.08,55.4710865]
[1769195878927,7.0307,128.16,128.08,62.5058865]
[1769195879332,7.0297,128.18,128.08,55.4710865]
[1769195879530,7.0297,128.18,128.1,55.4710865]
[1769195879831,46.45082486,128.18,128.1,55.4710865]
[1769195880537,7.0299,128.18,128.1,55.4710865]
[1769195881139,51.53177609,128.21,128.1,55.4710865]
[1769195881140,7.0301,128.17,128.1,55.4710865]
[1769195881330,109.3483,128.18,128.1,55.4710865]
[1769195881524,155.96706731,128.18,128.1,55.4710865]
[1769195881944,53.64846731,128.18,128.1,55.4710865]
[1769195882337,52.07554038,128.21,128.1,55.4710865]
[1769195882535,7.09754351,128.2,128.1,55.4710865]
[1769195883140,7.09754351,128.2,128.11,59.87207879]
[1769195883345,46.99458915,128.21,128.11,59.87207879]
[1769195883733,54.02278915,128.21,128.11,64.95303002]
[1769195884042,46.99458915,128.21,128.11,59.87207879]
[1769195884439,7.0282,128.21,128.12,59.87207879]
[1769195885036,7.0282,128.21,128.14,66.90347879]
[1769195885239,7.0269,128.23,128.14,59.87207879]
[1769195885627,156.93682279,128.23,128.14,59.87207879]
[1769195885838,7.0284,128.2,128.11,59.87207879]
[1769195886146,156.94722279,128.22,128.11,59.87207879]
[1769195886743,109.3302,128.2,128.12,60.87804491]
[1769195887341,7.0295,128.18,128.12,60.87804491]
[1769195887932,7.0288,128.2,128.12,60.87804491]
[1769195888236,7.0288,128.2,128.12,67.91064491]
[1769195888543,7.0289,128.19,128.12,67.91064491]
[1769195889047,54.83106222,128.21,128.12,67.91064491]
[1769195889343,48.10685033,128.24,128.13,65.95899614]
[1769195889961,109.2533,128.29,128.17,65.95899614]
[1769195890151,157.50812819,128.3,128.17,175.31099614]
[1769195890448,157.50812819,128.3,128.18,60.87804491]
[1769195890740,48.25632819,128.3,128.21,67.90574491]
[1769195891041,109.2344,128.32,128.21,65.95899614]
[1769195891243,304.63666351,128.33,128.23,65.95899614]
[1769195891436,311.65796351,128.33,128.25,60.87804491]
[1769195891739,7.0213,128.33,128.25,60.87804491]
[1769195892148,109.2198,128.33,128.25,60.87804491]
[1769195892941,7.0224,128.31,128.25,60.87804491]
[1769195894947,7.0224,128.31,128.23,72.98549614]
[1769195896138,7.0215,128.33,128.24,67.90394491]
[1769195897645,7.0205,128.35,128.26,60.87804491]
[1769195897841,109.1746,128.39,128.27,60.87804491]
[1769195898042,109.1746,128.39,128.29,60.87804491]
[1769195898043,109.18,128.38,128.29,60.87804491]
[1769195898242,49.38444223,128.37,128.26,60.87804491]
[1769195898443,49.38444223,128.34,128.24,60.87804491]
[1769195898649,109.1945,128.36,128.24,65.95899614]
[1769195898847,158.70787736,128.37,128.27,60.87804491]
[1769195899437,158.70787736,128.37,128.26,5.08095123]
[1769195899438,7.0191,128.37,128.28,67.90174491]
[1769195899651,7.0191,128.37,128.28,72.98269614]
[1769195900042,7.0197,128.36,128.28,65.95899614]
[1769195900352,7.0197,128.36,128.28,60.87804491]
[1769195900550,109.1953,128.36,128.28,60.87804491]
[1769195901246,49.78019689,128.33,128.25,60.87804491]
[1769195901444,109.2145,128.34,128.25,60.87804491]
[1769195901651,109.2022,128.35,128.25,60.87804491]
[1769195902148,109.1661,128.4,128.25,60.87804491]
[1769195902353,109.1768,128.38,128.3,60.87804491]
[1769195902853,7.0203,128.35,128.27,60.87804491]
[1769195903452,7.0203,128.35,128.24,109.2918]
[1769195903453,50.03750497,128.34,128.24,60.87804491]
[1769195904044,50.16509197,128.33,128.24,60.87804491]
[1769195904963,7.022,128.32,128.24,60.87804491]
[1769195907154,7.023,128.3,128.21,60.87804491]
[1769195907748,7.0243,128.28,128.22,60.87804491]
[1769195909553,7.0246,128.27,128.22,60.87804491]
[1769195909755,160.15567546,128.29,128.19,67.90644491]
[1769195909958,50.89747546,128.26,128.16,60.87804491]
[1769195910548,160.17967546,128.26,128.16,60.87804491]
[1769195911556,50.89747546,128.26,128.16,60.87804491]
[1769195911753,109.2628,128.28,128.16,60.87804491]
[1769195912962,7.0252,128.26,128.18,66.37707893]
[1769195913157,56.2111001,128.29,128.18,59.34777893]
[1769195913461,7.0244,128.28,128.21,59.34777893]
[1769195914561,160.69407131,128.31,128.21,66.37537893]
[1769195915563,7.0242,128.28,128.21,59.34777893]
[1769195917759,7.0232,128.3,128.21,59.34777893]
[1769195917964,161.21615447,128.34,128.21,64.40542699]
[1769195918166,51.99865447,128.34,128.23,59.34777893]
[1769195918461,59.01975447,128.34,128.25,59.34777893]
[1769195919158,7.02,128.36,128.26,59.34777893]
[1769195919865,7.02,128.36,128.29,66.37097893]
[1769195920162,7.0203,128.35,128.26,59.34777893]
[1769195920663,161.29206894,128.37,128.27,7.0241]
[1769195920864,7.02,128.36,128.27,66.37187893]
[1769195921163,161.29206894,128.37,128.27,66.37187893]
[1769195922063,7.0202,128.35,128.28,66.37157893]
[1769195923263,7.0202,128.35,128.28,59.34777893]
[1769195923462,7.0208,128.34,128.26,7.0245]
[1769195923663,7.0208,128.34,128.26,66.37227893]
[1769195923862,52.60853263,128.35,128.26,66.37227893]
[1769195924965,7.0213,128.33,128.26,66.37227893]
[1769195926966,7.0205,128.35,128.27,66.37207893]
[1769195927168,7.0205,128.35,128.27,59.34777893]
[1769195927864,7.0205,128.35,128.28,7.0237]
[1769195928062,7.0205,128.35,128.28,66.37147893]
[1769195928257,7.0209,128.34,128.28,59.34777893]
[1769195928462,52.99198627,128.35,128.25,66.37287893]
[1769195929869,52.99198627,128.35,128.26,59.34777893]
[1769195930863,7.0207,128.34,128.27,66.37217893]
[1769195931468,52.99198627,128.35,128.27,59.34777893]
[1769195933561,52.99198627,128.35,128.28,59.34777893]
[1769195935172,7.0195,128.37,128.28,59.34777893]
[1769195935673,53.61971727,128.38,128.28,59.34777893]
[1769195936177,53.61971727,128.38,128.3,59.34777893]
[1769195936877,53.78950188,128.36,128.27,59.34777893]
[1769195937266,7.0206,128.35,128.27,59.34777893]
[1769195938180,53.87329567,128.35,128.27,59.34777893]
[1769195939979,7.0211,128.34,128.27,66.37217893]
[1769195940678,60.89339567,128.35,128.28,66.37167893]
[1769195941477,7.0201,128.35,128.29,66.37107893]
[1769195941681,54.11875255,128.38,128.29,66.37107893]
[1769195941983,54.11875255,128.38,128.3,68.07902312]
[1769195942786,7.0185,128.38,128.31,61.05632312]
[1769195943878,54.39625217,128.37,128.28,61.05632312]
[1769195944474,54.39625217,128.37,128.24,5.05764806]
[1769195944475,54.39625217,128.35,128.24,61.05632312]
[1769195944674,59.45390023,128.35,128.24,61.05632312]
[1769195944877,7.0212,128.34,128.27,7.0245]
[1769195945183,54.39625217,128.35,128.24,61.05632312]
[1769195945573,109.1917,128.37,128.26,61.05632312]
[1769195945884,163.74035865,128.37,128.26,61.05632312]
[1769195946383,7.0206,128.35,128.28,7.0238]
[1769195947285,168.91182836,128.4,128.28,59.54913386]
[1769195947582,54.6937803,128.39,128.28,59.54913386]
[1769195947885,7.019,128.37,128.3,66.57193386]
[1769195948386,7.0196,128.36,128.3,59.54913386]
[1769195948885,54.6937803,128.39,128.3,59.54913386]
[1769195950000,54.91005437,128.38,128.3,59.54913386]
[1769195951092,7.0197,128.36,128.3,59.54913386]
[1769195955687,55.32068851,128.36,128.27,66.57303386]
[1769195955884,55.32068851,128.36,128.24,109.2933]
[1769195955885,55.32068851,128.34,128.24,59.54913386]
[1769195956497,7.0224,128.31,128.25,7.0256]
[1769195956791,62.40930852,128.31,128.21,114.37444806]
[1769195956992,55.38690852,128.28,128.19,59.54913386]
[1769195957199,7.0257,128.25,128.19,59.54913386]
[1769195957402,7.0257,128.25,128.16,66.57923386]
[1769195957594,7.0268,128.23,128.16,59.54913386]
[1769195957901,55.45167159,128.23,128.16,59.54913386]
[1769195958099,164.76097159,128.23,128.13,59.54913386]
[1769195958394,7.0285,128.2,128.13,59.54913386]
[1769195958596,5.05764806,128.23,128.13,59.54913386]
[1769195958791,169.86343888,128.25,128.13,59.54913386]
[1769195959100,169.86343888,128.25,128.15,66.58003386]
[1769195959101,7.0269,128.23,128.15,66.58003386]
[1769195959600,62.54189082,128.25,128.17,59.54913386]
[1769195959796,55.51599082,128.25,128.17,59.54913386]
[1769195959997,164.80969082,128.25,128.17,59.54913386]
[1769195960794,7.0265,128.24,128.17,59.54913386]
[1769195960993,164.80969082,128.25,128.17,59.54913386]
[1769195961300,55.51599082,128.25,128.17,59.54913386]
[1769195961499,7.026,128.25,128.17,59.54913386]
[1769195962191,7.026,128.25,128.17,66.57893386]
[1769195963688,165.11805837,128.25,128.17,59.54913386]
[1769195965202,7.0265,128.24,128.17,59.54913386]
[1769195969891,7.0268,128.23,128.17,59.54913386]
[1769195970497,7.0274,128.22,128.17,59.54913386]
[1769195971704,7.0274,128.22,128.14,59.54913386]
[1769195971901,7.0274,128.22,128.14,66.58063386]
[1769195972203,63.21007204,128.24,128.14,66.58063386]
[1769195972604,63.21007204,128.24,128.15,67.89672394]
[1769195974001,7.0274,128.22,128.15,67.89672394]
[1769195976109,7.0266,128.24,128.17,60.86572394]
[1769195976607,56.6956032,128.27,128.17,60.86572394]
[1769195976808,56.74686955,128.29,128.18,60.86572394]
[1769195977005,61.80586613,128.32,128.19,170.20142394]
[1769195977304,7.0237,128.29,128.23,60.86572394]
[1769195977612,56.74686955,128.32,128.23,60.86572394]
[1769195978102,275.21292869,128.35,128.24,60.86572394]
[1769195978596,56.79772869,128.35,128.25,60.86572394]
[1769195979511,56.79772869,128.35,128.26,67.89052394]
[1769195980015,56.89670539,128.34,128.26,60.86572394]
[1769195981010,7.0218,128.32,128.26,60.86572394]
[1769195985112,63.91780539,128.34,128.26,67.89062394]
[1769195985313,56.89670539,128.34,128.26,67.89062394]
[1769195986104,7.0218,128.32,128.26,60.86572394]
[1769195986299,56.89670539,128.34,128.26,60.86572394]
[1769195986605,57.17669055,128.32,128.23,60.86572394]
[1769195987527,7.0229,128.3,128.23,67.89232394]
[1769195987708,166.40679055,128.32,128.23,60.86572394]
[1769195987908,7.0235,128.29,128.23,60.86572394]
[1769195991018,57.39920269,128.3,128.2,60.86572394]
[1769195991907,7.0246,128.27,128.2,67.89402394]
[1769195992712,7.0238,128.29,128.22,60.86572394]
[1769195995114,7.0238,128.29,128.22,67.89262394]
[1769195996722,7.0238,128.29,128.23,67.89242394]
[1769195999021,57.39920269,128.3,128.23,67.89242394]
[1769195999528,64.42250269,128.3,128.23,67.89242394]
[1769196000523,7.0234,128.29,128.23,67.89242394]
[1769196000821,57.80435891,128.26,128.18,60.86572394]
[1769196001025,7.0267,128.23,128.18,60.86572394]
[1769196001225,57.80435891,128.24,128.18,60.86572394]
[1769196001525,7.0278,128.21,128.14,60.86572394]
[1769196001723,7.0278,128.21,128.14,67.89702394]
[1769196001917,57.80435891,128.24,128.14,60.86572394]
[1769196002120,167.09949505,128.23,128.14,60.86572394]
[1769196002529,57.79439505,128.23,128.14,60.86572394]
[1769196002719,7.0264,128.24,128.14,60.86572394]
[1769196003027,57.83336578,128.26,128.15,59.72098189]
[1769196003224,57.83336578,128.26,128.17,59.72098189]
[1769196003225,57.83336578,128.25,128.17,59.72098189]
[1769196005523,7.0263,128.24,128.17,66.75088189]
[1769196006524,7.0255,128.26,128.19,59.72098189]
[1769196006730,57.94410995,128.28,128.19,59.72098189]
[1769196007028,7.0245,128.27,128.19,59.72098189]
[1769196008026,7.0245,128.27,128.2,70.54510677]
[1769196009225,58.08061557,128.29,128.21,70.54460677]
[1769196009432,58.08061557,128.29,128.21,63.51690677]
[1769196010231,7.024,128.28,128.21,70.54460677]
[1769196010425,58.18503413,128.31,128.21,63.51690677]
[1769196010724,65.20783413,128.31,128.23,70.54350677]
[1769196010928,58.21824187,128.34,128.23,63.51690677]
[1769196011332,7.0212,128.33,128.27,63.51690677]
[1769196011721,58.25133198,128.29,128.21,63.51690677]
[1769196012029,58.25133198,128.28,128.17,63.51690677]
[1769196012228,58.25133198,128.27,128.17,63.51690677]
[1769196013930,7.0256,128.25,128.17,63.51690677]
[1769196014135,58.25133198,128.27,128.17,63.51690677]
[1769196015038,7.0251,128.26,128.19,70.54560677]
[1769196015235,58.34775128,128.24,128.14,63.51690677]
[1769196015934,7.0273,128.22,128.14,63.51690677]
[1769196016936,7.0273,128.22,128.14,70.54840677]
[1769196017434,7.028,128.21,128.14,63.51690677]
[1769196018330,7.0271,128.23,128.14,63.51690677]
[1769196019038,7.0273,128.22,128.15,70.54790677]
[1769196019629,7.0284,128.2,128.13,7.0316]
[1769196019831,58.5019804,128.23,128.13,63.51690677]
[1769196020426,58.5019804,128.23,128.14,63.51690677]
[1769196020936,7.0283,128.2,128.14,63.51690677]
[1769196021737,7.0277,128.22,128.14,63.51690677]
[1769196022034,7.0277,128.22,128.14,70.54850677]
[1769196022242,58.56216133,128.25,128.14,63.51690677]
[1769196022739,7.0267,128.23,128.16,70.54710677]
[1769196023540,58.56216133,128.25,128.17,70.54680677]
[1769196024338,7.0254,128.26,128.19,63.51690677]
[1769196025942,7.0254,128.26,128.19,70.54560677]
[1769196026843,58.62055755,128.28,128.2,70.54510677]
[1769196027043,114.31049658,128.3,128.2,70.54510677]
[1769196027044,63.76339685,128.3,128.2,63.51690677]
[1769196027238,167.92890027,128.33,128.21,63.51690677]
[1769196027435,109.2089,128.35,128.24,63.51690677]
[1769196027740,167.94026877,128.35,128.24,63.51690677]
[1769196027940,7.0216,128.33,128.26,70.54190677]
[1769196028441,7.0205,128.35,128.28,70.54080677]
[1769196028837,58.73136877,128.38,128.28,63.51690677]
[1769196029234,7.0198,128.36,128.28,63.51690677]
[1769196033037,7.0198,128.36,128.28,70.54070677]
[1769196033340,65.75006877,128.38,128.28,63.51690677]
[1769196033546,19.09239658,128.42,128.31,62.01586175]
[1769196033547,167.9863145,128.41,128.31,62.01586175]
[1769196034544,58.85333924,128.38,128.28,62.01586175]
[1769196035439,7.0203,128.35,128.28,62.01586175]
[1769196035946,7.0194,128.37,128.28,62.01586175]
[1769196037037,7.0194,128.37,128.3,62.01586175]
[1769196038441,7.0194,128.37,128.3,69.03856175]
[1769196039150,7.0183,128.39,128.3,69.03856175]
[1769196040647,7.0183,128.39,128.32,62.01586175]
[1769196040949,168.16831193,128.42,128.34,62.01586175]
[1769196041246,7.0183,128.39,128.34,62.01586175]
[1769196042046,7.0172,128.41,128.34,62.01586175]
[1769196042247,59.04828435,128.44,128.34,62.01586175]
[1769196043145,306.9910854,128.45,128.38,62.01586175]
[1769196043749,366.08487636,128.45,128.38,62.01586175]
[1769196043954,7.0142,128.46,128.39,69.03356175]
[1769196044254,59.09379096,128.46,128.37,5.05121598]
[1769196044553,59.09379096,128.45,128.36,62.01586175]
[1769196045652,59.13812232,128.48,128.37,62.01586175]
[1769196045850,59.13812232,128.48,128.37,67.06707773]
[1769196046554,7.0142,128.46,128.37,67.06707773]
[1769196046857,168.23242232,128.48,128.37,67.06707773]
[1769196047052,7.0148,128.45,128.38,69.03416175]
[1769196047751,66.19557845,128.45,128.38,62.01586175]
[1769196048558,7.0148,128.45,128.38,62.01586175]
[1769196048762,7.0137,128.47,128.38,62.01586175]
[1769196048955,59.20296822,128.48,128.38,69.03416175]
[1769196049460,168.31266822,128.46,128.38,62.01586175]
[1769196049858,66.21736822,128.46,128.38,62.01586175]
[1769196050056,7.0144,128.46,128.38,62.01586175]
[1769196050359,7.015,128.45,128.38,62.01586175]
[1769196050654,109.1089,128.46,128.38,62.01586175]
[1769196050850,168.32385066,128.47,128.38,62.01586175]
[1769196051246,168.3633483,128.45,128.38,62.01586175]
[1769196052263,7.016,128.43,128.38,62.01586175]
[1769196053155,7.0163,128.42,128.38,62.01586175]
[1769196053361,109.1363,128.43,128.35,62.01586175]
[1769196053656,5.05121598,128.47,128.35,62.01586175]
[1769196053657,109.0897,128.49,128.37,62.01586175]
[1769196053861,483.30191795,128.5,128.4,62.01586175]
[1769196053862,75.22271795,128.5,128.4,62.01586175]
[1769196054659,59.32436927,128.48,128.4,62.01586175]
[1769196055255,7.0135,128.48,128.41,69.03256175]
[1769196055754,7.0136,128.47,128.41,62.01586175]
[1769196057160,59.34309981,128.49,128.41,62.01586175]
[1769196058656,59.39882389,128.47,128.38,62.01586175]
[1769196059058,7.0147,128.45,128.38,69.03386175]
[1769196060359,168.53647579,128.45,128.34,62.01586175]
[1769196060558,59.41687579,128.44,128.34,62.01586175]
[1769196061160,59.41687579,128.44,128.36,69.03536175]
[1769196061461,5.05121598,128.49,128.41,62.01586175]
[1769196061662,184.43019118,128.5,128.41,62.01586175]
[1769196061963,59.45321831,128.49,128.41,62.01586175]
[1769196062665,66.46601831,128.49,128.41,69.03236175]
[1769196062866,66.46601831,128.49,128.41,62.01586175]
[1769196063057,15.91725696,128.5,128.41,67.06707773]
[1769196063666,15.91725696,128.5,128.44,70.09905609]
[1769196063863,15.91725696,128.5,128.44,63.08405609]
[1769196064959,63.41708403,128.54,128.46,63.08405609]
[1769196065663,7.0108,128.53,128.46,63.08405609]
[1769196066960,177.48900001,128.57,128.47,73.47892553]
[1769196067164,172.43778403,128.57,128.47,73.47892553]
[1769196067465,172.43778403,128.57,128.47,66.46552553]
[1769196067763,109.0071,128.58,128.49,66.46552553]
[1769196067963,169.51536214,128.58,128.49,66.46552553]
[1769196068769,7.0087,128.56,128.49,73.47782553]
[1769196068958,60.50826214,128.58,128.49,66.46552553]
[1769196069161,174.54777812,128.61,128.49,66.46552553]
[1769196069360,60.50826214,128.61,128.51,66.46552553]
[1769196069868,67.51426214,128.61,128.53,73.47562553]
[1769196070169,60.50826214,128.61,128.53,66.46552553]
[1769196070363,365.080547,128.6,128.53,66.46552553]
[1769196070569,304.57228486,128.6,128.5,66.46552553]
[1769196070969,7.0074,128.59,128.51,73.47672553]
[1769196071972,60.50826214,128.59,128.51,66.46552553]
[1769196072162,60.50826214,128.58,128.48,66.46552553]
[1769196072470,60.50826214,128.58,128.45,66.46552553]
[1769196072471,60.50826214,128.55,128.45,66.46552553]
[1769196072671,65.55947812,128.55,128.45,66.46552553]
[1769196073270,67.51786214,128.55,128.46,66.46552553]
[1769196073473,60.50826214,128.55,128.46,66.46552553]
[1769196073773,60.50826214,128.54,128.43,66.46552553]
[1769196074670,7.0102,128.54,128.45,66.46552553]
[1769196075372,7.0104,128.53,128.45,73.47992553]
[1769196076168,67.51786214,128.55,128.46,66.46552553]
[1769196076364,60.50826214,128.58,128.47,66.46552553]
[1769196076576,60.50826214,128.58,128.48,66.46552553]
[1769196077274,413.56498486,128.6,128.48,66.46552553]
[1769196077581,304.57228486,128.6,128.51,66.46552553]
[1769196078177,7.0071,128.59,128.51,66.46552553]
[1769196078379,304.57228486,128.6,128.51,66.46552553]
[1769196078670,365.080547,128.6,128.51,66.46552553]
[1769196078870,7.0081,128.57,128.51,66.46552553]
[1769196079468,7.0087,128.56,128.51,66.46552553]
[1769196082878,7.008,128.58,128.51,66.46552553]
[1769196083381,60.50826214,128.59,128.51,66.46552553]
[1769196084390,7.0087,128.56,128.51,66.46552553]
[1769196084769,60.50826214,128.57,128.48,66.46552553]
[1769196085884,7.0092,128.55,128.48,66.46552553]
[1769196086772,7.0098,128.54,128.48,66.46552553]
[1769196087074,169.53366214,128.56,128.48,66.46552553]
[1769196087887,169.51896214,128.58,128.48,66.46552553]
[1769196088082,60.50826214,128.57,128.48,66.46552553]
[1769196089279,114.05271598,128.59,128.48,66.46552553]
[1769196089679,474.073347,128.6,128.51,66.46552553]
[1769196090579,60.50826214,128.6,128.52,73.47632553]
[1769196091987,7.007,128.59,128.53,73.47562553]
[1769196093494,7.0065,128.6,128.53,73.47562553]
[1769196094487,7.0055,128.62,128.53,73.47562553]
[1769196094889,7.0055,128.62,128.54,7.0092]
[1769196095088,7.0055,128.62,128.54,72.45294218]
[1769196095987,7.0059,128.61,128.54,72.45294218]
[1769196096490,60.50826214,128.63,128.54,65.44374218]
[1769196096790,60.50826214,128.63,128.51,5.05121598]
[1769196096791,66.53112226,128.6,128.51,65.44374218]
[1769196097084,66.53112226,128.6,128.52,65.44374218]
[1769196097875,7.007,128.59,128.53,7.0102]
[1769196098076,114.01901598,128.63,128.53,109.0456]
[1769196098077,66.53112226,128.63,128.53,109.0456]
[1769196098281,66.53112226,128.66,128.56,65.44374218]
[1769196098482,66.53112226,128.66,128.58,72.45124218]